[Event "SVK Amateur-ch 2020"]
[Site "Topolcany"]
[Date "2020.07.12"]
[Round "4.11"]
[White "Bochnicka, Vladimir"]
[Black "Matis, Tibor"]
[Result "1/2-1/2"]
[ECO "B32"]
[WhiteElo "2092"]
[BlackElo "1939"]
[Annotator "ChessBase"]
[PlyCount "89"]
[EventDate "2020.07.10"]
[EventType "swiss"]
[EventCountry "SVK"]
[SourceTitle "playchess.com"]
[Source "ChessBase"]
[SourceQuality "1"]
[TimeControl "3600+30"]

1. e4 {[%emt 0:00:00]} c5 {[%emt 0:03:41]} 2. Nf3 {[%emt 0:00:00]} Nc6 {[%emt 0:00:06]} 3. d4 {[%emt 0:00:00]} cxd4 {[%emt 0:00:04]} 4. Nxd4 {[%emt 0:00:00]} e5 {[%emt 0:00:06]} 5. Nb5 {[%emt 0:00:00]} d6 {[%emt 0:00:04]} 6. N1c3 {[%emt 0:00:00]} a6 {[%emt 0:00:05]} 7. Na3 {[%emt 0:00:07]} b5 {[%emt 0:00:33]} 8. Nd5 {[%emt 0:00:08]} Nf6 {[%emt 0:00:07]} 9. Bg5 {[%emt 0:00:08]} Be7 {[%emt 0:00:05]} 10. Bxf6 {[%emt 0:00:06]} Bxf6 {[%emt 0:00:06]} 11. c3 {[%emt 0:00:07]} O-O {[%emt 0:00:06]} 12. Nc2 {[%emt 0:00:07]} Bg5 {[%emt 0:00:27]} 13. a4 {[%emt 0:00:52]} Rb8 {[%emt 0:01:53]} 14. axb5 {[%emt 0:01:35]} axb5 {[%emt 0:02:40]} 15. Be2 {[%emt 0:00:39]} Be6 {[%emt 0:01:30]} 16. Nce3 {[%emt 0:01:39]} Bxe3 {[%emt 0:03:22]} 17. Nxe3 {[%emt 0:02:46]} b4 {[%emt 0:01:28]} 18. O-O {[%emt 0:02:43]} bxc3 {[%emt 0:00:12]} 19. bxc3 {[%emt 0:00:06]} Ne7 {[%emt 0:00:20]} 20. Bc4 {[%emt 0:05:16]} Bxc4 {[%emt 0:04:17]} 21. Nxc4 {[%emt 0:00:09]} Qc7 {[%emt 0:00:17]} 22. Ne3 {[%emt 0:04:20]} Qxc3 {[%emt 0:06:16]} 23. Qxd6 {[%emt 0:01:05]} Ng6 {[%emt 0:00:12]} 24. g3 {[%emt 0:05:16]} Rfd8 {[%emt 0:03:12]} 25. Rac1 {[%emt 0:02:02]} Rxd6 {[%emt 0:01:17]} 26. Rxc3 {[%emt 0:00:01]} Rd4 {[%emt 0:00:58]} 27. Rc4 {[%emt 0:03:32]} Rxc4 {[%emt 0:09:10]} 28. Nxc4 {[%emt 0:00:02]} Rc8 {[%emt 0:00:34]} 29. Nb6 {[%emt 0:00:35]} Rc6 {[%emt 0:04:51]} 30. Nd5 {[%emt 0:00:10]} Rc4 {[%emt 0:00:15]} 31. Rb1 {[%emt 0:00:13]} f6 {[%emt 0:01:33]} 32. Rb4 {[%emt 0:00:16]} Rxb4 {[%emt 0:00:18]} 33. Nxb4 {[%emt 0:00:02]} Kf7 {[%emt 0:00:12]} 34. Kf1 {[%emt 0:00:35]} Ke6 {[%emt 0:00:33]} 35. Ke2 {[%emt 0:00:17]} Nf8 {[%emt 0:00:27]} 36. Ke3 {[%emt 0:00:12]} Nd7 {[%emt 0:00:18]} 37. Nd5 {[%emt 0:00:56]} Nc5 {[%emt 0:01:02]} 38. f3 {[%emt 0:01:31]} Kd6 {[%emt 0:00:47]} 39. f4 {[%emt 0:01:06]} Ke6 {[%emt 0:01:58]} 40. f5+ {[%emt 0:00:29]} Kd6 {[%emt 0:00:04]} 41. g4 {[%emt 0:00:10]} h6 {[%emt 0:00:54]} 42. Nc3 {[%emt 0:00:29]} Ke7 {[%emt 0:00:57]} 43. Ne2 {[%emt 0:00:06]} Kd6 {[%emt 0:02:19]} 44. Ng3 {[%emt 0:01:44]} Ke7 {[%emt 0:01:21]} 45. Ne2 {[%emt 0:00:12]} 1/2-1/2

[Event "SVK Amateur-ch 2020"]
[Site "Topolcany"]
[Date "2020.07.12"]
[Round "4.12"]
[White "Joba, Arpad"]
[Black "Meers, Hubert"]
[Result "1/2-1/2"]
[ECO "B12"]
[WhiteElo "2124"]
[BlackElo "2037"]
[Annotator "ChessBase"]
[PlyCount "110"]
[EventDate "2020.07.10"]
[EventType "swiss"]
[EventCountry "SVK"]
[SourceTitle "playchess.com"]
[Source "ChessBase"]
[SourceQuality "1"]
[TimeControl "3600+30"]

1. e4 {[%emt 0:01:43]} c6 {[%emt 0:00:00]} 2. d4 {[%emt 0:01:01]} g6 {[%emt 0:00:00]} 3. Nc3 {[%emt 0:01:19]} d5 {[%emt 0:00:06]} 4. exd5 {[%emt 0:00:48]} cxd5 {[%emt 0:00:11]} 5. Nf3 {[%emt 0:00:31]} Nf6 {[%emt 0:01:56]} 6. Bf4 {[%emt 0:01:37]} a6 {[%emt 0:02:02]} 7. Be2 {[%emt 0:01:07]} Bg7 {[%emt 0:00:16]} 8. O-O {[%emt 0:00:07]} Bg4 {[%emt 0:06:36]} 9. Ne5 {[%emt 0:06:28]} Bxe2 {[%emt 0:00:55]} 10. Nxe2 {[%emt 0:01:19]} O-O {[%emt 0:03:45]} 11. a4 {[%emt 0:01:56]} Nc6 {[%emt 0:00:25]} 12. Nxc6 {[%emt 0:02:45]} bxc6 {[%emt 0:02:19]} 13. Nc1 {[%emt 0:00:07]} Nh5 {[%emt 0:17:15]} 14. Bg5 {[%emt 0:02:30]} Qd6 {[%emt 0:01:17]} 15. Re1 {[%emt 0:08:35]} e5 {[%emt 0:07:41]} 16. dxe5 {[%emt 0:06:31]} Bxe5 {[%emt 0:00:06]} 17. h3 {[%emt 0:01:05]} Bxb2 {[%emt 0:06:30]} 18. Be7 {[%emt 0:01:24]} Qd7 {[%emt 0:00:42]} 19. Rb1 {[%emt 0:05:29]} Rfe8 {[%emt 0:00:13]} 20. Nd3 {[%emt 0:02:14]} Rxe7 {[%emt 0:06:41]} 21. Rxb2 {[%emt 0:01:03]} Nf6 {[%emt 0:02:28]} 22. Nc5 {[%emt 0:02:21]} Qd6 {[%emt 0:05:05]} 23. Rxe7 {[%emt 0:01:37]} Qxe7 {[%emt 0:00:01]} 24. Qd4 {[%emt 0:00:08]} Nd7 {[%emt 0:00:32]} 25. Nxd7 {[%emt 0:01:10]} Qxd7 {[%emt 0:00:01]} 26. Rb6 {[%emt 0:00:48]} Qc7 {[%emt 0:00:46]} 27. Qc5 {[%emt 0:04:47]} Re8 {[%emt 0:00:53]} 28. g3 {[%emt 0:01:11]} Re1+ {[%emt 0:04:05]} 29. Kh2 {[%emt 0:01:23]} Qe7 {[%emt 0:00:50]} 30. Qc3 {[%emt 0:04:39]} Qe5 {[%emt 0:00:36]} 31. Qxe5 {[%emt 0:00:40]} Rxe5 {[%emt 0:00:01]} 32. Rxc6 {[%emt 0:01:30]} Re4 {[%emt 0:00:09]} 33. a5 {[%emt 0:00:22]} Kf8 {[%emt 0:01:16]} 34. Rxa6 {[%emt 0:01:33]} Rc4 {[%emt 0:00:24]} 35. Rd6 {[%emt 0:00:04]} Rxc2 {[%emt 0:00:06]} 36. Kg2 {[%emt 0:01:48]} Rc5 {[%emt 0:00:09]} 37. a6 {[%emt 0:02:14]} Ke7 {[%emt 0:01:14]} 38. Rb6 {[%emt 0:00:06]} Ra5 {[%emt 0:00:04]} 39. Rb7+ {[%emt 0:00:46]} Ke6 {[%emt 0:00:14]} 40. a7 {[%emt 0:00:19]} Ra3 {[%emt 0:00:13]} 41. f4 {[%emt 0:01:49]} h5 {[%emt 0:01:19]} 42. Kf2 {[%emt 0:00:31]} d4 {[%emt 0:00:24]} 43. Ke2 {[%emt 0:00:32]} Kf6 {[%emt 0:00:54]} 44. g4 {[%emt 0:00:40]} hxg4 {[%emt 0:00:13]} 45. hxg4 {[%emt 0:00:05]} Ke6 {[%emt 0:00:50]} 46. Kd2 {[%emt 0:00:25]} d3 {[%emt 0:00:05]} 47. Ke3 {[%emt 0:01:08]} f6 {[%emt 0:00:30]} 48. Rg7 {[%emt 0:00:28]} g5 {[%emt 0:00:50]} 49. f5+ {[%emt 0:00:31]} Kd6 {[%emt 0:00:36]} 50. Rf7 {[%emt 0:00:44]} d2+ {[%emt 0:00:29]} 51. Kxd2 {[%emt 0:00:08]} Ke5 {[%emt 0:00:04]} 52. Rb7 {[%emt 0:01:18]} Kf4 {[%emt 0:00:15]} 53. Rb4+ {[%emt 0:00:03]} Ke5 {[%emt 0:00:09]} 54. Rb7 {[%emt 0:01:02]} Kf4 {[%emt 0:00:11]} 55. Rb4+ {[%emt 0:00:04]} Ke5 1/2-1/2

[Event "SVK Amateur-ch 2020"]
[Site "Topolcany"]
[Date "2020.07.13"]
[Round "4.12"]
[White "Kulhanek, Jachym"]
[Black "Slovak, Pavol"]
[Result "1-0"]
[ECO "B00"]
[WhiteElo "1926"]
[BlackElo "1618"]
[Annotator "ChessBase"]
[PlyCount "77"]
[EventDate "2020.07.10"]
[EventType "swiss"]
[EventCountry "SVK"]
[TimeControl "3600+30"]

1. e4 {[%emt 0:00:00]} Nc6 {[%emt 0:03:49]} 2. Nf3 {[%emt 0:01:39]} f5 {[%emt 0:00:06]} 3. exf5 {[%emt 0:01:04]} d5 {[%emt 0:00:04]} 4. d4 {[%emt 0:00:27]} Bxf5 {[%emt 0:00:09]} 5. a3 {[%emt 0:02:48]} Nf6 {[%emt 0:00:08]} 6. Nc3 {[%emt 0:07:09]} g6 {[%emt 0:00:30]} 7. Bb5 {[%emt 0:02:13]} a6 {[%emt 0:00:50]} 8. Bd3 {[%emt 0:01:02]} Qd7 {[%emt 0:01:52]} 9. Bf4 {[%emt 0:03:57]} Bg4 {[%emt 0:00:51]} 10. Be2 {[%emt 0:01:07]} Bg7 {[%emt 0:01:54]} 11. Ne5 {[%emt 0:03:25]} Nxe5 {[%emt 0:00:43]} 12. Bxe5 {[%emt 0:00:42]} O-O {[%emt 0:00:37]} 13. h3 {[%emt 0:03:16]} Bxe2 {[%emt 0:00:23]} 14. Qxe2 {[%emt 0:00:55]} Nh5 {[%emt 0:01:07]} 15. Bxg7 {[%emt 0:02:30]} Nxg7 {[%emt 0:00:31]} 16. O-O-O {[%emt 0:01:26]} Rf6 {[%emt 0:01:26]} 17. Rhe1 {[%emt 0:01:42]} e6 {[%emt 0:01:05]} 18. Qd2 {[%emt 0:01:13]} Raf8 {[%emt 0:00:30]} 19. f3 {[%emt 0:00:20]} Nf5 {[%emt 0:02:09]} 20. Kb1 {[%emt 0:01:28]} Nd6 {[%emt 0:00:41]} 21. b3 {[%emt 0:00:44]} Qc6 {[%emt 0:00:28]} 22. Re2 {[%emt 0:02:06]} Nf5 {[%emt 0:03:21]} 23. Rde1 {[%emt 0:00:53]} Qb6 {[%emt 0:05:14]} 24. Rd1 {[%emt 0:01:25]} Nd6 {[%emt 0:00:43]} 25. Na4 {[%emt 0:00:35]} Qb5 {[%emt 0:02:08]} 26. Ka2 {[%emt 0:08:59]} Nc4 {[%emt 0:05:12]} 27. Qe1 {[%emt 0:01:43]} Re8 {[%emt 0:02:27]} 28. Nc3 {[%emt 0:01:43]} Qc6 {[%emt 0:01:20]} 29. bxc4 {[%emt 0:01:12]} Qxc4+ {[%emt 0:00:05]} 30. Ka1 {[%emt 0:01:55]} e5 {[%emt 0:00:28]} 31. Rxe5 {[%emt 0:03:30]} Rxe5 {[%emt 0:01:11]} 32. dxe5 {[%emt 0:00:05]} Rc6 {[%emt 0:00:42]} 33. Nxd5 {[%emt 0:01:49]} Qc5 {[%emt 0:02:15]} 34. Nb4 {[%emt 0:03:26]} Rb6 {[%emt 0:03:07]} 35. Rd8+ {[%emt 0:01:02]} Kg7 {[%emt 0:00:25]} 36. e6 {[%emt 0:00:59]} a5 {[%emt 0:01:23]} 37. e7 {[%emt 0:01:43]} axb4 {[%emt 0:01:37]} 38. e8=Q {[%emt 0:00:27]} bxa3 {[%emt 0:00:29]} 39. Q8e5+ {[%emt 0:00:45]} 1-0

[Event "SVK Amateur-ch 2020"]
[Site "Topolcany"]
[Date "2020.07.12"]
[Round "4.13"]
[White "Brnusak, Tomas"]
[Black "Kapusta, Petr"]
[Result "0-1"]
[ECO "E71"]
[WhiteElo "2028"]
[BlackElo "2115"]
[Annotator "ChessBase"]
[PlyCount "112"]
[EventDate "2020.07.10"]
[EventType "swiss"]
[EventCountry "SVK"]
[SourceTitle "playchess.com"]
[Source "ChessBase"]
[SourceQuality "1"]
[TimeControl "3600+30"]

1. d4 {[%emt 0:00:00]} Nf6 {[%emt 0:00:00]} 2. c4 {[%emt 0:00:09]} g6 {[%emt 0:00:00]} 3. Nc3 {[%emt 0:00:29]} Bg7 {[%emt 0:00:00]} 4. e4 {[%emt 0:00:46]} d6 {[%emt 0:00:00]} 5. h3 {[%emt 0:00:35]} O-O {[%emt 0:00:09]} 6. Be3 {[%emt 0:00:20]} e5 {[%emt 0:00:37]} 7. d5 {[%emt 0:00:22]} Nbd7 {[%emt 0:01:07]} 8. g4 {[%emt 0:00:48]} Nc5 {[%emt 0:00:59]} 9. Bg2 {[%emt 0:00:41]} a5 {[%emt 0:00:26]} 10. Nge2 {[%emt 0:01:50]} h5 {[%emt 0:03:55]} 11. g5 {[%emt 0:06:45]} Nh7 {[%emt 0:04:07]} 12. h4 {[%emt 0:01:05]} f5 {[%emt 0:01:34]} 13. f3 {[%emt 0:00:24]} b6 {[%emt 0:03:36]} 14. Qc2 {[%emt 0:03:31]} fxe4 {[%emt 0:06:13]} 15. fxe4 {[%emt 0:00:13]} Bg4 {[%emt 0:00:32]} 16. Rh2 {[%emt 0:17:19]} Qd7 {[%emt 0:01:38]} 17. O-O-O {[%emt 0:02:47]} Rf7 {[%emt 0:00:18]} 18. Rg1 {[%emt 0:00:59]} Qe7 {[%emt 0:06:43]} 19. Ng3 {[%emt 0:04:03]} Nf8 {[%emt 0:04:08]} 20. Nb5 {[%emt 0:02:34]} Na6 {[%emt 0:00:33]} 21. a3 {[%emt 0:01:33]} Nd7 {[%emt 0:00:15]} 22. Nf1 {[%emt 0:00:07]} Ndc5 {[%emt 0:01:20]} 23. Bh3 {[%emt 0:02:59]} Bxh3 {[%emt 0:04:46]} 24. Rxh3 {[%emt 0:00:02]} Raf8 {[%emt 0:00:10]} 25. Nd2 {[%emt 0:00:25]} a4 {[%emt 0:00:33]} 26. Kd1 {[%emt 0:05:02]} Qd7 {[%emt 0:03:44]} 27. Rhg3 {[%emt 0:00:08]} c6 {[%emt 0:00:53]} 28. Nc3 {[%emt 0:01:41]} cxd5 {[%emt 0:01:30]} 29. Nxd5 {[%emt 0:00:06]} Qb7 {[%emt 0:03:52]} 30. b4 {[%emt 0:04:27]} axb3 {[%emt 0:01:49]} 31. Nxb3 {[%emt 0:00:02]} Rf1+ {[%emt 0:00:25]} 32. Ke2 {[%emt 0:00:37]} Rxg1 {[%emt 0:01:15]} 33. Bxg1 {[%emt 0:00:29]} Qf7 {[%emt 0:00:29]} 34. Nd2 {[%emt 0:00:08]} Ne6 {[%emt 0:01:23]} 35. Kd1 {[%emt 0:04:20]} Nac5 {[%emt 0:00:54]} 36. Rf3 {[%emt 0:00:53]} Nf4 {[%emt 0:00:29]} 37. Bxc5 {[%emt 0:00:13]} bxc5 {[%emt 0:00:31]} 38. a4 {[%emt 0:00:08]} Qe6 {[%emt 0:03:15]} 39. Ne3 {[%emt 0:01:41]} Ra8 {[%emt 0:02:11]} 40. Nb1 {[%emt 0:00:43]} Qd7 {[%emt 0:01:12]} 41. Nc3 {[%emt 0:00:07]} Ne6 {[%emt 0:00:26]} 42. Rf1 {[%emt 0:05:23]} Nd4 {[%emt 0:00:20]} 43. Qf2 {[%emt 0:00:03]} Qb7 {[%emt 0:03:12]} 44. Qa2 {[%emt 0:00:17]} Qd7 {[%emt 0:01:01]} 45. Qb2 {[%emt 0:00:36]} Qh3 {[%emt 0:02:49]} 46. Ncd5 {[%emt 0:02:30]} Rxa4 {[%emt 0:01:49]} 47. Nf6+ {[%emt 0:00:09]} Bxf6 {[%emt 0:00:38]} 48. gxf6 {[%emt 0:00:20]} Ra8 {[%emt 0:01:41]} 49. f7+ {[%emt 0:03:05]} Kf8 {[%emt 0:00:01]} 50. Qc3 {[%emt 0:00:31]} Rb8 {[%emt 0:00:54]} 51. Qa3 {[%emt 0:00:17]} Qh2 {[%emt 0:01:51]} 52. Kc1 {[%emt 0:00:34]} Nb3+ {[%emt 0:00:36]} 53. Kb1 {[%emt 0:00:15]} Nd2+ {[%emt 0:00:13]} 54. Ka1 {[%emt 0:00:06]} Nxf1 {[%emt 0:00:55]} 55. Nxf1 {[%emt 0:00:23]} Qf2 {[%emt 0:00:20]} 56. Ne3 {[%emt 0:01:12]} Qe1+ {[%emt 0:00:13]} 0-1

[Event "SVK Amateur-ch 2020"]
[Site "Topolcany"]
[Date "2020.07.13"]
[Round "4.13"]
[White "Moravcik, Rastislav"]
[Black "Kapolkova, Greta"]
[Result "1-0"]
[ECO "D00"]
[WhiteElo "1916"]
[BlackElo "1510"]
[Annotator "ChessBase"]
[PlyCount "49"]
[EventDate "2020.07.10"]
[EventType "swiss"]
[EventCountry "SVK"]
[TimeControl "3600+30"]

1. d4 {[%emt 0:00:00]} d5 {[%emt 0:00:00]} 2. e3 {[%emt 0:00:11]} c5 {[%emt 0:00:23]} 3. f4 {[%emt 0:01:21]} e6 {[%emt 0:01:07]} 4. c3 {[%emt 0:00:27]} Nf6 {[%emt 0:01:06]} 5. Nf3 {[%emt 0:00:13]} Nc6 {[%emt 0:00:23]} 6. Bd3 {[%emt 0:00:17]} b6 {[%emt 0:00:39]} 7. O-O {[%emt 0:00:17]} Be7 {[%emt 0:00:28]} 8. Ne5 {[%emt 0:01:41]} Nxe5 {[%emt 0:00:43]} 9. fxe5 {[%emt 0:00:19]} Nd7 {[%emt 0:00:23]} 10. Nd2 {[%emt 0:04:24]} O-O {[%emt 0:01:14]} 11. Nf3 {[%emt 0:08:41]} Bb7 {[%emt 0:01:22]} 12. Bd2 {[%emt 0:04:47]} Rc8 {[%emt 0:10:57]} 13. Be1 {[%emt 0:03:04]} Re8 {[%emt 0:01:23]} 14. Bg3 {[%emt 0:01:45]} Nf8 {[%emt 0:00:34]} 15. Qe2 {[%emt 0:01:58]} Ng6 {[%emt 0:00:35]} 16. Rad1 {[%emt 0:02:19]} Nh4 {[%emt 0:03:48]} 17. Bxh4 {[%emt 0:00:42]} Bxh4 {[%emt 0:00:18]} 18. Nxh4 {[%emt 0:00:45]} Qxh4 {[%emt 0:00:10]} 19. Rf3 {[%emt 0:03:06]} Rf8 {[%emt 0:01:55]} 20. Rh3 {[%emt 0:01:29]} Qe7 {[%emt 0:00:58]} 21. Bxh7+ {[%emt 0:04:35]} Kh8 {[%emt 0:00:26]} 22. Bg6+ {[%emt 0:00:39]} Kg8 {[%emt 0:00:26]} 23. Rh8+ {[%emt 0:00:52]} Kxh8 {[%emt 0:00:12]} 24. Qh5+ {[%emt 0:00:08]} Kg8 {[%emt 0:00:05]} 25. Qh7# {[%emt 0:00:12]} 1-0

[Event "SVK Amateur-ch 2020"]
[Site "Topolcany"]
[Date "2020.07.13"]
[Round "4.15"]
[White "Pokrupa, Marek"]
[Black "Adda Peter"]
[Result "1-0"]
[ECO "B37"]
[WhiteElo "2187"]
[BlackElo "1000"]
[Annotator "ChessBase"]
[PlyCount "97"]
[EventDate "2020.07.10"]
[EventType "swiss"]
[EventCountry "SVK"]
[TimeControl "3600+30"]

1. c4 {[%emt 0:01:14]} c5 {[%emt 0:00:00]} 2. Nf3 {[%emt 0:00:44]} Nc6 {[%emt 0:00:00]} 3. Nc3 {[%emt 0:00:35]} g6 {[%emt 0:00:11]} 4. d4 {[%emt 0:01:43]} cxd4 {[%emt 0:00:50]} 5. Nxd4 {[%emt 0:00:04]} Bg7 {[%emt 0:00:14]} 6. Nc2 {[%emt 0:00:14]} Nf6 {[%emt 0:00:34]} 7. e4 {[%emt 0:00:13]} d6 {[%emt 0:00:15]} 8. Be2 {[%emt 0:00:08]} O-O {[%emt 0:00:27]} 9. O-O {[%emt 0:00:03]} b6 {[%emt 0:04:26]} 10. Bg5 {[%emt 0:01:33]} h6 {[%emt 0:01:33]} 11. Be3 {[%emt 0:00:12]} Bb7 {[%emt 0:00:20]} 12. Qd2 {[%emt 0:00:07]} Kh7 {[%emt 0:00:06]} 13. Rac1 {[%emt 0:04:24]} Rc8 {[%emt 0:02:57]} 14. b3 {[%emt 0:00:30]} Nd7 {[%emt 0:01:43]} 15. Rfd1 {[%emt 0:03:39]} Nc5 {[%emt 0:04:20]} 16. f3 {[%emt 0:00:35]} Qe8 {[%emt 0:11:48]} 17. Bf1 {[%emt 0:13:30]} Ne6 {[%emt 0:05:40]} 18. Nd5 {[%emt 0:00:40]} Nb8 {[%emt 0:02:58]} 19. Bf2 {[%emt 0:01:22]} Bxd5 {[%emt 0:02:19]} 20. exd5 {[%emt 0:01:44]} Nc5 {[%emt 0:03:54]} 21. Nd4 {[%emt 0:00:55]} Qd7 {[%emt 0:02:27]} 22. Rc2 {[%emt 0:05:42]} Bxd4 {[%emt 0:05:56]} 23. Qxd4 {[%emt 0:04:59]} Nb7 {[%emt 0:01:02]} 24. Re2 {[%emt 0:01:14]} e5 {[%emt 0:00:21]} 25. dxe6 {[%emt 0:00:33]} fxe6 {[%emt 0:00:09]} 26. Bg3 {[%emt 0:03:44]} Nc6 {[%emt 0:01:27]} 27. Qg4 {[%emt 0:01:24]} Rf6 {[%emt 0:02:57]} 28. Bh4 {[%emt 0:04:08]} Rf5 {[%emt 0:07:23]} 29. Bg3 {[%emt 0:02:51]} Re8 {[%emt 0:01:07]} 30. Red2 {[%emt 0:01:04]} Rd8 {[%emt 0:04:34]} 31. Bf4 {[%emt 0:06:01]} e5 {[%emt 0:00:38]} 32. Be3 {[%emt 0:00:11]} h5 {[%emt 0:01:22]} 33. Qh4 {[%emt 0:00:49]} Qe7 {[%emt 0:00:09]} 34. Qxe7+ {[%emt 0:02:33]} Nxe7 {[%emt 0:00:02]} 35. Bd3 {[%emt 0:00:04]} Rf7 {[%emt 0:00:27]} 36. Be4 {[%emt 0:00:03]} Nf5 {[%emt 0:00:57]} 37. Bf2 {[%emt 0:01:08]} Nc5 {[%emt 0:01:15]} 38. Bxf5 {[%emt 0:00:23]} gxf5 {[%emt 0:00:29]} 39. Rxd6 {[%emt 0:01:08]} Rdf8 {[%emt 0:00:12]} 40. Bxc5 {[%emt 0:00:23]} bxc5 {[%emt 0:00:07]} 41. R6d5 {[%emt 0:01:11]} e4 {[%emt 0:00:28]} 42. Rxc5 {[%emt 0:01:45]} exf3 {[%emt 0:00:24]} 43. gxf3 {[%emt 0:01:03]} Rg8+ {[%emt 0:00:11]} 44. Kf2 {[%emt 0:00:06]} Rfg7 {[%emt 0:00:36]} 45. Ke3 {[%emt 0:01:58]} Rf8 {[%emt 0:01:18]} 46. Kf4 {[%emt 0:00:32]} Rg2 {[%emt 0:00:09]} 47. Rd7+ {[%emt 0:00:09]} Kg6 {[%emt 0:00:37]} 48. Rc6+ {[%emt 0:00:28]} Rf6 {[%emt 0:00:07]} 49. Rcc7 {[%emt 0:00:13]} 1-0

[Event "SVK Amateur-ch 2020"]
[Site "Topolcany"]
[Date "2020.07.13"]
[Round "4.17"]
[White "Bielik, Miroslav"]
[Black "Kostic, Ivan"]
[Result "1-0"]
[ECO "D02"]
[WhiteElo "2133"]
[BlackElo "1694"]
[Annotator "ChessBase"]
[PlyCount "81"]
[EventDate "2020.07.10"]
[EventType "swiss"]
[EventCountry "SVK"]
[TimeControl "3600+30"]

1. d4 {[%emt 0:00:00]} d5 {[%emt 0:00:00]} 2. Bf4 {[%emt 0:00:01]} e6 {[%emt 0:00:07]} 3. e3 {[%emt 0:00:03]} Nf6 {[%emt 0:00:19]} 4. Nf3 {[%emt 0:00:08]} c5 {[%emt 0:01:01]} 5. c3 {[%emt 0:00:04]} Nc6 {[%emt 0:00:36]} 6. Nbd2 {[%emt 0:00:10]} b6 {[%emt 0:01:15]} 7. Bb5 {[%emt 0:01:08]} Bd7 {[%emt 0:00:28]} 8. Ba6 {[%emt 0:00:15]} Bc8 {[%emt 0:00:53]} 9. Qa4 {[%emt 0:00:29]} Bxa6 {[%emt 0:02:51]} 10. Qxa6 {[%emt 0:00:58]} cxd4 {[%emt 0:03:15]} 11. cxd4 {[%emt 0:00:21]} Nb4 {[%emt 0:03:10]} 12. Qa4+ {[%emt 0:00:17]} Qd7 {[%emt 0:00:17]} 13. Qxd7+ {[%emt 0:01:01]} Nxd7 {[%emt 0:00:20]} 14. Ke2 {[%emt 0:00:08]} Be7 {[%emt 0:01:29]} 15. Rhc1 {[%emt 0:00:52]} Na6 {[%emt 0:03:43]} 16. a3 {[%emt 0:01:27]} O-O {[%emt 0:00:21]} 17. b4 {[%emt 0:00:09]} Rac8 {[%emt 0:03:01]} 18. b5 {[%emt 0:01:03]} Nab8 {[%emt 0:00:23]} 19. a4 {[%emt 0:00:29]} a6 {[%emt 0:02:53]} 20. Kd3 {[%emt 0:00:40]} Bb4 {[%emt 0:03:34]} 21. Rab1 {[%emt 0:01:37]} a5 {[%emt 0:00:26]} 22. Bc7 {[%emt 0:02:35]} Be7 {[%emt 0:02:46]} 23. Rc2 {[%emt 0:04:48]} Bd8 {[%emt 0:00:49]} 24. Rbc1 {[%emt 0:01:55]} Bxc7 {[%emt 0:00:36]} 25. Rxc7 {[%emt 0:00:01]} Rxc7 {[%emt 0:00:11]} 26. Rxc7 {[%emt 0:00:10]} Rd8 {[%emt 0:00:30]} 27. Rb7 {[%emt 0:00:53]} f6 {[%emt 0:02:28]} 28. e4 {[%emt 0:03:38]} Kf8 {[%emt 0:04:13]} 29. exd5 {[%emt 0:00:27]} exd5 {[%emt 0:00:20]} 30. Nb1 {[%emt 0:01:30]} Ke7 {[%emt 0:00:29]} 31. Nc3 {[%emt 0:00:09]} Kd6 {[%emt 0:00:59]} 32. Ne1 {[%emt 0:00:17]} f5 {[%emt 0:03:45]} 33. f4 {[%emt 0:01:42]} Rf8 {[%emt 0:05:20]} 34. Nc2 {[%emt 0:01:51]} h6 {[%emt 0:00:58]} 35. Ne3 {[%emt 0:00:12]} g5 {[%emt 0:01:12]} 36. g3 {[%emt 0:00:02]} gxf4 {[%emt 0:00:44]} 37. gxf4 {[%emt 0:00:02]} Rf6 {[%emt 0:11:21]} 38. Ncxd5 {[%emt 0:00:30]} Rg6 {[%emt 0:00:30]} 39. Nxf5+ {[%emt 0:00:30]} Ke6 {[%emt 0:00:30]} 40. Nfe3 {[%emt 0:00:07]} Rg8 {[%emt 0:00:43]} 41. Nxb6 {[%emt 0:00:35]} 1-0

[Event "SVK Amateur-ch 2020"]
[Site "Topolcany"]
[Date "2020.07.12"]
[Round "4.18"]
[White "Macko, Michal"]
[Black "Nikel, Rastislav"]
[Result "1-0"]
[ECO "B10"]
[WhiteElo "2145"]
[BlackElo "1982"]
[Annotator "ChessBase"]
[PlyCount "73"]
[EventDate "2020.07.10"]
[EventType "swiss"]
[EventCountry "SVK"]
[SourceTitle "playchess.com"]
[Source "ChessBase"]
[SourceQuality "1"]
[TimeControl "3600+30"]

1. c4 {[%emt 0:00:00]} c6 {[%emt 0:00:00]} 2. e4 {[%emt 0:00:30]} d5 {[%emt 0:00:00]} 3. exd5 {[%emt 0:00:12]} cxd5 {[%emt 0:00:03]} 4. cxd5 {[%emt 0:00:03]} Nf6 {[%emt 0:00:19]} 5. Nc3 {[%emt 0:00:04]} Nxd5 {[%emt 0:00:26]} 6. Bc4 {[%emt 0:04:35]} e6 {[%emt 0:01:06]} 7. Nf3 {[%emt 0:02:05]} Be7 {[%emt 0:01:12]} 8. O-O {[%emt 0:00:12]} Nxc3 {[%emt 0:00:17]} 9. bxc3 {[%emt 0:00:22]} Nc6 {[%emt 0:00:10]} 10. Qe2 {[%emt 0:04:44]} O-O {[%emt 0:00:27]} 11. d4 {[%emt 0:00:05]} Qa5 {[%emt 0:03:50]} 12. Bd2 {[%emt 0:01:07]} Bf6 {[%emt 0:00:14]} 13. Rab1 {[%emt 0:03:41]} a6 {[%emt 0:10:49]} 14. Rfe1 {[%emt 0:01:03]} b5 {[%emt 0:02:07]} 15. Bd3 {[%emt 0:00:06]} Bd7 {[%emt 0:03:29]} 16. Qe4 {[%emt 0:00:44]} g6 {[%emt 0:00:16]} 17. Re2 {[%emt 0:05:28]} Rfe8 {[%emt 0:10:36]} 18. Qf4 {[%emt 0:01:37]} Qd8 {[%emt 0:00:53]} 19. Rbe1 {[%emt 0:00:49]} b4 {[%emt 0:02:27]} 20. c4 {[%emt 0:01:19]} Nxd4 {[%emt 0:02:09]} 21. Nxd4 {[%emt 0:00:04]} e5 {[%emt 0:00:14]} 22. Qf3 {[%emt 0:00:14]} exd4 {[%emt 0:00:28]} 23. Rxe8+ {[%emt 0:00:10]} Bxe8 {[%emt 0:00:18]} 24. Rxe8+ {[%emt 0:00:35]} Qxe8 {[%emt 0:00:16]} 25. Qxf6 {[%emt 0:00:04]} Qd8 {[%emt 0:01:31]} 26. Qf3 {[%emt 0:00:34]} a5 {[%emt 0:00:38]} 27. Be4 {[%emt 0:00:09]} Rc8 {[%emt 0:01:33]} 28. Bd5 {[%emt 0:00:07]} Qe7 {[%emt 0:00:48]} 29. g3 {[%emt 0:02:13]} Kg7 {[%emt 0:05:01]} 30. Qf4 {[%emt 0:00:16]} a4 {[%emt 0:01:10]} 31. Qxd4+ {[%emt 0:00:11]} f6 {[%emt 0:00:15]} 32. Qb6 {[%emt 0:00:47]} b3 {[%emt 0:00:45]} 33. axb3 {[%emt 0:00:19]} a3 {[%emt 0:00:55]} 34. Bb4 {[%emt 0:00:46]} a2 {[%emt 0:02:36]} 35. Bxe7 {[%emt 0:00:09]} a1=Q+ {[%emt 0:00:10]} 36. Kg2 {[%emt 0:00:03]} Re8 {[%emt 0:00:16]} 37. Qe6 {[%emt 0:00:14]} 1-0